Workbook

Sheet P. BDI
B1: IMPRIMIR EM PAPEL TIMBRADO DA EMPRESA PROPONENTE
B2: BDI - Bonificações e Despesas Indiretas
B3: Edital : | C3: TP -xxx
B4: Tomador: | C4: Prefeitura Municipal de Dois Vizinhos - PR
B5: Empreendimento: | C5: CONJUNTO SEMAFORICO
B6: Local da Obra: | C6: Perímetro Urbano Município de Dois Vizinhos
B7: Empresa Prop.: | C7: xxxxxxxxxxxxxx
B8: CNPJ: | C8: xxxxxxxxxxxxxx
B9: Referencia: | C9: ='Orçamento novo'!C11 -> COTAÇÕES DE MERCADO
B11: Identifique o tipo de obra: | C11: 6 | D11: =IF(C11>0,IF(C11<7,,"<--- Insira valor entre 1 e 6"),"<--- Insira valor entre 1 e 6") -> 0
B12: Construção de edifícios: | C12: 1 | D12: Informe a base de cálculo do ISSQN.
B13: Construção de rodovias e ferrovias: | C13: 2 | D13: =IF(D14<>0,0,"( X )") -> 0 | E13: Sobre os serviços.
B14: Construção de redes de abastecimento de água, coleta de esgoto e construções correlatas: | C14: 3 | D14: x | E14: Sobre a mão-de-obra.
B15: Construção e manutenção de estações e redes de distribuição de energia elétrica: | C15: 4 | D15: Informe a ocorrência da DESONERAÇÃO da folha de pagamento. Lei 12844/2013.
B16: Obras portuárias, marítimas e fluviais: | C16: 5 | D16: =IF(D17<>0,0,"( X )") -> 0 | E16: SEM Desoneração.
B17: Fornecimento de materiais e equipamentos: | C17: 6 | D17: x | E17: COM Desoneração.
C19: Intervalo de admissibilidade | H19: Ac | I19: =F21 -> 0.015
B20: Item Componente do BDI | C20: 1º Quartil | D20: Médio | E20: 3º Quartil | F20: Valores Propostos | H20: S | I20: =F22 -> 0.003
B21: Administração Central | C21: 0.015 | D21: 0.0345 | E21: 0.0449 | F21: =C21 -> 0.015 | G21: =IF(F21=0,"",IF(F21<C21,"Atenção, observar os intervalos!",IF(F21>E21,"Atenção, observar os intervalos!",""))) ->  | H21: G | I21: =I20 -> 0.003
B22: Seguro e Garantia | C22: 0.003 | D22: 0.0048 | E22: 0.0082 | F22: =C22 -> 0.003 | G22: =IF(F22=0,"",IF(F22<C22,"Atenção, observar os intervalos!",IF(F22>E22,"Atenção, observar os intervalos!",""))) ->  | H22: R | I22: =F23 -> 0.0056
B23: Risco | C23: 0.0056 | D23: 0.0085 | E23: 0.0089 | F23: 0.0056 | G23: =IF(F23=0,"",IF(F23<C23,"Atenção, observar os intervalos!",IF(F23>E23,"Atenção, observar os intervalos!",""))) ->  | H23: DF | I23: 0.0085
B24: Despesas Financeiras | C24: 0.0085 | D24: 0.0085 | E24: 0.0111 | F24: 0.0085 | G24: =IF(F24=0,"",IF(F24<C24,"Atenção, observar os intervalos!",IF(F24>E24,"Atenção, observar os intervalos!",""))) ->  | H24: L | I24: 0.035
B25: Lucro | C25: 0.035 | D25: 0.0511 | E25: 0.0622 | F25: 0.035 | G25: =IF(F25=0,"",IF(F25<C25,"Atenção, observar os intervalos!",IF(F25>E25,"Atenção, observar os intervalos!",""))) ->  | H25: l1 | I25: 0.0365
B26: I1: PIS e COFINS | F26: 0.0365 | H26: l2 | I26: 0.03
B27: I2: ISSQN (conforme legislação municipal) | F27: 0.03 | H27: l3 | I27: 0.045
B28: I3: Cont.Prev s/Rec.Bruta (Lei 12844/13 - Desoneração) | F28: 0.045
B30: BDI - SEM Desoneração da folha de pagamento | F30: =(((1+I19+I21+I22)*(1+I23)*(1+I24))/(1-I25-I26))-1 -> 0.1445432469 | H30: 1º QUARTIL | I30: MÉDIO | J30: 3º QUARTIL
B31: BDI - COM Desoneração da folha de pagamento | F31: =ROUND((((1+I19+I21+I22)*(1+I23)*(1+I24))/(1-I25-I26-I27))-1,4) -> 0.2025 | H31: 0.2034 | I31: 0.2212 | J31: 0.25
B33: Declaramos que esta planilha foi elaborada conforme equação para cálculo do percentual do BDI recomendada pelo Acórdão 2622/2013 - TCU, representada pela fórmula abaixo.
B35: BDI - SEM Desoneração = [(1+AC+S+G+R)X(1+DF)X(1+L)/(1-I1-I2)]-1
B36: BDI - COM Desoneração = [(1+AC+S+G+R)X(1+DF)X(1+L)/(1-I1-I2-I3)]-1
B39: Responsável Técnico: | C39: MARCIO TRENTINI
B40: Carimbo e Assinatura CREA/CAU: | C40: CREA - PR 133392/D
B45: Responsavel Legal:
B46: Carimbo e Assinatura

Sheet QCI
A1: IMPRIMIR EM PAPEL TIMBRADO DA EMPRESA PROPONENTE
A2: QUADRO DE COMPOSIÇÃO DE INVESTIMENTO
A8: ='P. BDI'!B3 -> Edital : | C8: ='P. BDI'!C3:F3 -> TP -xxx | D8: Valor Tot. s/ BDI: | F8: ='Orçamento novo'!H21 -> 93695.08
A9: ='P. BDI'!B4 -> Tomador: | C9: ='P. BDI'!C4:F4 -> Prefeitura Municipal de Dois Vizinhos - PR | D9: Valor Tot. c/ BDI: | F9: ='Orçamento novo'!H23 -> 112668.3337
A10: ='P. BDI'!B5 -> Empreendimento: | C10: ='P. BDI'!C5:F5 -> CONJUNTO SEMAFORICO
A11: ='P. BDI'!B6 -> Local da Obra: | C11: ='P. BDI'!C6:F6 -> Perímetro Urbano Município de Dois Vizinhos
A12: ='P. BDI'!B7 -> Empresa Prop.: | C12: ='P. BDI'!C7:F7 -> xxxxxxxxxxxxxx
A13: ='P. BDI'!B8 -> CNPJ: | C13: ='P. BDI'!C8:F8 -> xxxxxxxxxxxxxx
A14: ='P. BDI'!B9 -> Referencia: | C14: ='P. BDI'!C9:F9 -> COTAÇÕES DE MERCADO
A15: BDI c/ desoneração: | C15: ='P. BDI'!F31 -> 0.2025
B25: ITEM . | C25: DESCRIÇÃO | D25: % DO GRUPO | F25: VALOR DO GRUPO: | H25: TOTAL ACUM.
B26: ='Orçamento novo'!A16 -> .1 | C26: ='Orçamento novo'!C16 -> CONJUNTO SEMAFORICO EM LED. FORNECIMENTO E INSTALAÇÃO. NO CRUZAMENTO DA RUAS PRES. WASHINGTON LUIZ COM A RUA PADRE ANCHIETA | D26: =F26/$F$37 -> 0.5 | F26: ='Orçamento novo'!H16 -> 56334.16685 | H26: =F26 -> 56334.16685
B27: ='Orçamento novo'!A18 -> .2 | C27: ='Orçamento novo'!C18 -> CONJUNTO SEMAFORICO EM LED. FORNECIMENTO E INSTALAÇÃO. NO CRUZAMENTO DA RUA CASTRO ALVES COM A RUA DO COMERCIO | D27: =F27/$F$37 -> 0.5 | F27: ='Orçamento novo'!H18 -> 56334.16685 | H27: =F27+H26 -> 112668.3337
B37: TOTAL : | D37: =SUM(D26:E31) -> 1 | F37: =SUM(F26:G31) -> 112668.3337 | H37: =H27 -> 112668.3337
D43: Responsável Técnico: | E43: ='P. BDI'!C39 -> MARCIO TRENTINI
D44: Carimbo e Assinatura CREA/CAU: | E44: ='P. BDI'!C40 -> CREA - PR 133392/D
D49: Responsavel Legal:
D50: Carimbo e Assinatura

Sheet Orçamento novo
A1: IMPRIMIR EM PAPEL TIMBRADO DA EMPRESA PROPONENTE
A2: PLANILHA ORÇAMENTARIA
A5: ='P. BDI'!B3 -> Edital : | C5: ='P. BDI'!C3:F3 -> TP -xxx
A6: ='P. BDI'!B4 -> Tomador: | C6: ='P. BDI'!C4:F4 -> Prefeitura Municipal de Dois Vizinhos - PR
A7: ='P. BDI'!B5 -> Empreendimento: | C7: ='P. BDI'!C5:F5 -> CONJUNTO SEMAFORICO
A8: ='P. BDI'!B6 -> Local da Obra: | C8: ='P. BDI'!C6:F6 -> Perímetro Urbano Município de Dois Vizinhos
A9: ='P. BDI'!B7 -> Empresa Prop.: | C9: ='P. BDI'!C7:F7 -> xxxxxxxxxxxxxx
A10: ='P. BDI'!B8 -> CNPJ: | C10: ='P. BDI'!C8:F8 -> xxxxxxxxxxxxxx
A11: ='P. BDI'!B9 -> Referencia: | C11: COTAÇÕES DE MERCADO
A12: BDI c/ desoneração: | C12: =QCI!C15 -> 0.2025
A14: ITEM . | B14: REF. | C14: DESCRIÇÃO | D14: UN | E14: VALOR UNIT. | F14: QUANT. | G14: VALOR UNIT C/ BDI | H14: TOTAL
A16: .1 | B16: COT. | C16: CONJUNTO SEMAFORICO EM LED. FORNECIMENTO E INSTALAÇÃO. NO CRUZAMENTO DA RUAS PRES. WASHINGTON LUIZ COM A RUA PADRE ANCHIETA | D16: UD | E16: 46847.54 | F16: 1 | G16: =(E16*$C$12)+E16 -> 56334.16685 | H16: =G16*F16 -> 56334.16685 | J16: =E16*F16 -> 46847.54
J17: =E17*F17 -> 0
A18: .2 | B18: COT. | C18: CONJUNTO SEMAFORICO EM LED. FORNECIMENTO E INSTALAÇÃO. NO CRUZAMENTO DA RUA CASTRO ALVES COM A RUA DO COMERCIO | D18: UD | E18: 46847.54 | F18: 1 | G18: =(E18*$C$12)+E18 -> 56334.16685 | H18: =G18*F18 -> 56334.16685 | J18: =E18*F18 -> 46847.54
A21: VALOR TOTAL DA OBRA : | H21: =SUM(J16:J20) -> 93695.08
A22: BDI : | H22: =H21*C12 -> 18973.2537
A23: VALOR TOTAL DA OBRA COM BDI: | H23: =H21+H22 -> 112668.3337
D28: Responsável Técnico: | E28: ='P. BDI'!C39 -> MARCIO TRENTINI
D29: Carimbo e Assinatura CREA/CAU: | E29: ='P. BDI'!C40 -> CREA - PR 133392/D
D35: Responsavel Legal:
D36: Carimbo e Assinatura

Sheet CRON
A1: IMPRIMIR EM PAPEL TIMBRADO DA EMPRESA PROPONENTE
A2: CRONOGRAMA FÍSICO-FINANCEIRO
A5: ='P. BDI'!B3 -> Edital : | C5: ='P. BDI'!C3:F3 -> TP -xxx | D5: Valor Tot. s/ BDI: | F5: =QCI!F8 -> 93695.08
A6: ='P. BDI'!B4 -> Tomador: | C6: ='P. BDI'!C4:F4 -> Prefeitura Municipal de Dois Vizinhos - PR | D6: Valor Tot. c/ BDI: | F6: =QCI!F9 -> 112668.3337
A7: ='P. BDI'!B5 -> Empreendimento: | C7: ='P. BDI'!C5:F5 -> CONJUNTO SEMAFORICO
A8: ='P. BDI'!B6 -> Local da Obra: | C8: ='P. BDI'!C6:F6 -> Perímetro Urbano Município de Dois Vizinhos
A9: ='P. BDI'!B7 -> Empresa Prop.: | C9: ='P. BDI'!C7:F7 -> xxxxxxxxxxxxxx
A10: ='P. BDI'!B8 -> CNPJ: | C10: ='P. BDI'!C8:F8 -> xxxxxxxxxxxxxx
A11: ='P. BDI'!B9 -> Referencia: | C11: ='P. BDI'!C9:F9 -> COTAÇÕES DE MERCADO
A12: BDI c/ deson.: | C12: ='P. BDI'!F31 -> 0.2025
B15: ITEM . | C15: DESCRIÇÃO | E15: VALOR DO GRUPO | G15: MÊS °1 | H15: MÊS °2 | I15: MÊS °3 | J15: MÊS °4 | K15: MÊS °5 | L15: MÊS °6 | M15: MÊS °7 | N15: MÊS °8 | O15: MÊS °9 | P15: % TOTAL
B16: =QCI!B26 -> .1 | C16: =QCI!C26 -> CONJUNTO SEMAFORICO EM LED. FORNECIMENTO E INSTALAÇÃO. NO CRUZAMENTO DA RUAS PRES. WASHINGTON LUIZ COM A RUA PADRE ANCHIETA | E16: =QCI!F26 -> 56334.16685 | G16: 0.7 | H16: 0.3 | P16: =SUM(G16:O16) -> 1
B17: =QCI!B27 -> .2 | C17: =QCI!C27 -> CONJUNTO SEMAFORICO EM LED. FORNECIMENTO E INSTALAÇÃO. NO CRUZAMENTO DA RUA CASTRO ALVES COM A RUA DO COMERCIO | E17: =QCI!F27 -> 56334.16685 | G17: 0.7 | H17: 0.3 | P17: =SUM(G17:O17) -> 1
B31: % TOTAL DE EXECUÇÃO: | E31: 1 | G31: =G32/$E$32 -> 0.7 | H31: =H32/$E$32 -> 0.3 | I31: 0 | J31: 0 | K31: =K32/$E$32 -> 0 | L31: 0 | M31: 0 | N31: 0 | O31: 0
B32: TOTAL: | E32: =SUM(E16:F30) -> 112668.3337 | G32: =(G16*$E$16)+(G17*$E$17)+(G19*$E$19)+(G20*$E$20)+(G21*$E$21)+(G18*$E$18)+(G26*$E$26)+(G27*$E$27)+(G28*$E$28)+(G29*$E$29)+(G30*$E$30) -> 78867.83359 | H32: =(H16*$E$16)+(H17*$E$17)+(H19*$E$19)+(H20*$E$20)+(H21*$E$21)+(H18*$E$18)+(H26*$E$26)+(H27*$E$27)+(H28*$E$28)+(H29*$E$29)+(H30*$E$30) -> 33800.50011 | I32: =(I16*$E$16)+(I17*$E$17)+(I19*$E$19)+(I20*$E$20)+(I21*$E$21)+(I18*$E$18)+(I26*$E$26)+(I27*$E$27)+(I28*$E$28)+(I29*$E$29)+(I30*$E$30) -> 0 | J32: =(J16*$E$16)+(J17*$E$17)+(J19*$E$19)+(J20*$E$20)+(J21*$E$21)+(J18*$E$18)+(J26*$E$26)+(J27*$E$27)+(J28*$E$28)+(J29*$E$29)+(J30*$E$30) -> 0 | K32: =(K16*$E$16)+(K17*$E$17)+(K19*$E$19)+(K20*$E$20)+(K21*$E$21)+(K18*$E$18)+(K26*$E$26)+(K27*$E$27)+(K28*$E$28)+(K29*$E$29)+(K30*$E$30) -> 0 | L32: =(L16*$E$16)+(L17*$E$17)+(L19*$E$19)+(L20*$E$20)+(L21*$E$21)+(L25*$E$25)+(L26*$E$26)+(L27*$E$27)+(L28*$E$28)+(L29*$E$29)+(L30*$E$30) -> 0 | M32: 0 | N32: 0 | O32: 0
B33: TOTAL ACUM.: | G33: =G32 -> 78867.83359 | H33: =H32+G33 -> 112668.3337 | I33: =I32+H33 -> 112668.3337 | J33: =J32+I33 -> 112668.3337 | K33: =K32+J33 -> 112668.3337 | L33: =L32+K33 -> 112668.3337 | M33: 112668.3337 | N33: 112668.3337 | O33: 112668.3337
F39: Responsável Técnico: | G39: ='P. BDI'!C39 -> MARCIO TRENTINI
F40: Carimbo e Assinatura CREA/CAU: | G40: ='P. BDI'!C40 -> CREA - PR 133392/D
F45: Responsavel Legal:
F46: Carimbo e Assinatura

Sheet DESTRAVAR (hidden)
A1: Sub DesprotegerPlanilhaAtiva()
A2: Dim i, i1, i2, i3, i4, i5, i6 As Integer, j As Integer, k As Integer, l As Integer, m As Integer, n As Integer
A3: On Error Resume Next
A4: For i = 65 To 66
A5: For j = 65 To 66
A6: For k = 65 To 66
A7: For l = 65 To 66
A8: For m = 65 To 66
A9: For i1 = 65 To 66
A10: For i2 = 65 To 66
A11: For i3 = 65 To 66
A12: For i4 = 65 To 66
A13: For i5 = 65 To 66
A14: For i6 = 65 To 66
A15: For n = 32 To 126
A16: ActiveSheet.Unprotect Chr(i) & Chr(j) & Chr(k) & Chr(l) & Chr(m) & Chr(i1) & Chr(i2) & Chr(i3) & Chr(i4) & Chr(i5) & Chr(i6) & Chr(n)
A17: If ActiveSheet.ProtectContents = False Then
A18: MsgBox "Planilha desprotegida com sucesso!!!"
A19: Exit Sub
A20: End If
A21: Next
A22: Next
A23: Next
A24: Next
A25: Next
A26: Next
A27: Next
A28: Next
A29: Next
A30: Next
A31: Next
A32: Next
A33: End Sub
